Cogmind - Beta 12 @@@ ROGUE MODE // 2023.12.26 @ 01:37:10 Player: Horse Result: Destroyed by as-90407 with Assembled Blade Performance ------------- Evolutions (3) 1500 Regions Visited (11) 2200 Robots Destroyed (143) 715 Value Destroyed (4958) 4958 Prototype IDs (24) 480 Alien Tech Used (0) 0 Bonus (2899) 2899 TOTAL SCORE: 12752 Bonus ------- High Alert Combat Kills 651 Follower Combat Kills 415 Entered Garrisons 200 Destroyed Z-Imprinter 1000 Triggered Deep Caves Wall 500 Exposed GOLEM Chamber 500 Friendly Fire -367 Cogmind --------- Core Integrity 0/700 Matter 257/300 Energy 34/100 System Corruption 0% Temperature Cool (0) Movement Core (800) Ox15 Location -7/Deep Caves Parts ------- > --- POWER (2) -------- (None) > --- PROPULSION (3) --- (None) > --- UTILITY (6) ------ High-capacity Storage Unit Advanced Targeting Computer > --- WEAPON (2) ------- RU-N14's Throwing Claymores > --- INVENTORY (20) --- Armored Wheel Experimental Heat Sink Coolant Injector Zionite Biocell (600) Compact Matter Pod (150) Trap Scanner Machine Analyzer Encrypted Comm Array Dynamic Insulation System Long-range Tractor Beam RU-N14's Throwing Claymores (10) CR-A16's Pointy Stick Peak State ------------ > --- POWER ------------ Micro Nuclear Core Antimatter Reactor > --- PROPULSION ------- Improved Treads Armored Wheel Armored Wheel > --- UTILITY ---------- Experimental Heat Sink High-capacity Storage Unit Advanced Targeting Computer Zionite Weapon Casing Zionite Heavy Carapace > --- WEAPON ----------- Heavy Beamcaster RU-N14's Throwing Claymores > --- INVENTORY -------- Armored Wheel Coolant Injector Large Storage Unit High-capacity Battery Compact Matter Pod Trap Scanner Machine Analyzer Encrypted Comm Array Zionite Light Carapace Reactive Plating Improved Shield Generator Dynamic Insulation System Corruption Screen Long-range Tractor Beam Plasma Cannon Gauss Cannon RU-N14's Throwing Claymores RU-N14's Throwing Claymores RU-N14's Throwing Claymores CR-A16's Pointy Stick [Rating: 66] Favorites ----------- Power Micro Nuclear Core Engine Ion Engine Power Core Micro Nuclear Core Reactor Antimatter Reactor Propulsion Armored Wheel Treads Improved Treads Leg Aluminum Leg Wheel Armored Wheel Hover Unit Aerolev Unit Utility Medium Storage Unit Device Improved Shield Generator Storage Medium Storage Unit Processor Advanced Targeting Computer Hackware Hacking Suite Protection Reactive Plating Weapon Plasma Cannon Energy Gun Heavy Beamcaster Energy Cannon Plasma Cannon Ballistic Gun Light Assault Rifle Ballistic Cannon Advanced Assault Cannon Launcher Mini Grenade Launcher Special Weapon RU-N14's Throwing Claymores Build | -11 -10 -9 -8 -8 -7 -7 -7 -7 -7 -7 -7 ------- Run | Jun Mat Mat Mat Gar Fac Was Fac Low Low Zio Dee Slots Evolved 6 | . . 2 2 . 2 . . . . . . Power 1 | . . . 1 . . . . . . . . Propulsion 1 | . . 1 . . . . . . . . . Utility 4 | . . 1 1 . 2 . . . . . . Weapon . | . . . . . . . . . . . . Parts Attached 179 | 7 13 39 31 8 29 4 7 8 5 2 26 Power 15 | 1 1 3 3 2 4 1 . . . . . Engine 11 | 1 1 3 2 2 2 . . . . . . Core 3 | . . . 1 . 2 . . . . . . Reactor 1 | . . . . . . 1 . . . . . Propulsion 32 | 3 3 12 4 2 7 . . . 1 . . Treads 1 | . . . . . . . . . 1 . . Leg 23 | 2 3 12 4 2 . . . . . . . Wheel 6 | 1 . . . . 5 . . . . . . Hover 2 | . . . . . 2 . . . . . . Flight . | . . . . . . . . . . . . Utility 78 | 1 5 9 17 2 12 1 4 8 4 1 14 Device 34 | . 2 4 5 1 4 1 2 4 4 . 7 Storage 6 | 1 1 . 2 . . . . 1 . . 1 Processor 4 | . . . . . 2 . 1 1 . . . Hackware 4 | . . 1 2 . 1 . . . . . . Protection 30 | . 2 4 8 1 5 . 1 2 . 1 6 Artifact . | . . . . . . . . . . . . Weapon 54 | 2 4 15 7 2 6 2 3 . . 1 12 Energy Gun 7 | 1 . . . . 1 1 . . . . 4 Energy Cannon 11 | . . 5 1 . 2 1 . . . . 2 Ballistic Gun 3 | 1 1 . 1 . . . . . . . . Ballistic Cannon 16 | . 1 5 3 1 2 . 2 . . . 2 Launcher 11 | . 2 4 2 1 1 . 1 . . . . Special Weapon 6 | . . 1 . . . . . . . 1 4 Impact Weapon . | . . . . . . . . . . . . Slashing Weapon . | . . . . . . . . . . . . Piercing Weapon . | . . . . . . . . . . . . Special Melee Weapon . | . . . . . . . . . . . . Unidentified Prototypes 10 | . . . 1 . 1 1 . . . 1 6 Parts Lost 31 | . 1 1 1 5 7 . . 1 . . 15 Power 5 | . . . . 1 1 . . . . . 3 Propulsion 10 | . . . . 2 5 . . . . . 3 Utility 9 | . . . 1 1 1 . . 1 . . 5 Weapon 7 | . 1 1 . 1 . . . . . . 4 Highest Loss Streak 15 | . 1 1 1 2 4 . . 1 . . 15 To Critical Strikes . | . . . . . . . . . . . . Average Slot Usage (%) 95 | . 95 94 96 99 93 100 100 100 100 95 90 Engine 6 | . 14 11 12 14 7 5 . . . . . Core 4 | . . . 2 3 5 7 7 7 7 7 6 Reactor 3 | . . . . . . 1 7 7 7 7 6 Treads 2 | . . . . . . . . . 3 7 6 Leg 13 | . 28 32 27 27 10 . . . . . . Wheel 8 | . . . . . 6 23 23 23 19 15 15 Device 7 | . 10 2 2 8 5 . 11 12 15 10 7 Storage 8 | . 14 11 8 9 7 7 7 7 7 7 7 Processor 5 | . . . . . 6 7 7 15 15 10 7 Hackware 7 | . . 5 17 18 18 22 14 . . . . Protection 7 | . 2 13 6 . 4 7 3 9 7 11 12 Energy Gun 1 | . 6 . . . . . . . . . 4 Energy Cannon 5 | . . 5 7 3 6 7 7 7 7 7 2 Ballistic Cannon 4 | . 4 4 4 7 5 7 5 7 7 3 . Launcher 1 | . 2 1 4 6 2 . 2 . . . . Special Weapon 2 | . . 6 . . . . . . . 3 6 Naked Turns . | . . . . . . . . . . . . Heaviest Build 106 | 11 22 29 43 43 44 51 52 91 90 106 106 Greatest Support 49 | 20 20 33 49 49 49 36 36 36 36 24 24 Greatest Overweight (x) 8 | . 1 . . . 8 1 1 2 3 4 4 Average Overweight (x) 1 | . . . . . . . 1 1 2 3 3 Largest Inventory Capacity 20 | 8 10 10 10 10 10 10 10 20 20 20 20 Average Capacity 13 | 7 8 10 9 10 10 10 10 18 20 20 20 Most Carried 20 | 6 10 10 10 10 10 10 10 15 20 20 20 Average Carried 12 | 3 7 9 9 8 9 10 9 13 16 19 19 Final Capacity 20 | 8 10 10 10 10 10 10 10 20 20 20 20 Final Carried 20 | 6 10 10 9 9 10 10 10 14 20 20 12 Class Distribution -------------------- 54% | Mutant 36% | Hacker-Mutant 4% | Derelict-Mutant 3% | Scavenger-Mutant Dominant Class ---------------- Mutant | -10/Materials Mutant | -9/Materials Hacker-Mutant | -8/Materials Hacker-Mutant | -8/Garrison Hacker-Mutant | -7/Factory Hacker-Mutant | -7/Waste Hacker-Mutant | -7/Factory Mutant | -7/Lower Caves Mutant | -7/Lower Caves Mutant | -7/Zion Mutant | -7/Deep Caves Resources | -11 -10 -9 -8 -8 -7 -7 -7 -7 -7 -7 -7 ----------- Run | Jun Mat Mat Mat Gar Fac Was Fac Low Low Zio Dee Matter Collected 3634 | 273 195 1118 484 406 490 55 20 237 182 . 174 Remotely . | . . . . . . . . . . . . Salvage Created 4261 | 139 308 1113 669 317 894 . 20 131 336 . 334 Parts 240 | 7 20 82 45 22 42 . 3 3 12 . 4 Haulers Intercepted 2 | . . 1 1 . . . . . . . . Recyclers Shooed 7 | . 1 2 . . 2 . 2 . . . . Parts Field Recycled . | . . . . . . . . . . . . Retrieved Matter . | . . . . . . . . . . . . Parts Self-Destructed 23 | . . . . . . . . 9 14 . . Prevented 2 | . . . . . . . . 2 . . . Kills | -11 -10 -9 -8 -8 -7 -7 -7 -7 -7 -7 -7 ------- Run | Jun Mat Mat Mat Gar Fac Was Fac Low Low Zio Dee Combat Hostiles Destroyed 134 | . 9 33 17 16 19 . . 4 8 . 28 Guns 10 | . 7 . . . . . . . . . 3 Cannons 60 | . 1 16 14 7 7 . . 4 8 . 3 AOE 64 | . 1 17 3 9 12 . . . . . 22 Classes Destroyed 17 | 2 3 5 1 . 3 . . . . . 3 Worker 6 | . . 1 3 . 2 . . . . . . Builder 2 | . . 1 . . 1 . . . . . . Tunneler 3 | 2 . 1 . . . . . . . . . Hauler 2 | . . 1 1 . . . . . . . . Recycler 10 | 1 1 2 . . 6 . . . . . . Operator 3 | . 1 2 . . . . . . . . . Watcher 6 | . . 2 1 . 2 . 1 . . . . Swarmer 32 | . 6 10 4 7 4 . . 1 . . . Grunt 49 | . 3 18 7 7 6 . . 1 7 . . Duelist 2 | . . . . . 1 . . . 1 . . Protector 2 | . . . . . 2 . . . . . . Sentry 14 | . . 5 5 2 1 . . 1 . . . Hunter 4 | . . . 1 . 2 . . 1 . . . Programmer 3 | . . . . . 3 . . . . . . Z-Light 4 | . . . . . . . . . . . 4 Assembled 21 | . . . . . . . . . . . 21 Golem 2 | . . . . . . . . . . . 2 Best Kill Streak 21 | 2 3 11 9 6 14 . 1 3 3 . 21 Combat Bots Only 21 | . 3 10 7 6 11 . . 3 3 . 21 Max Kills in Single Turn 8 | 1 1 4 5 2 6 . 1 1 1 . 8 Gunslinging . | . . . . . . . . . . . . Exploded 7 | . 1 4 3 2 4 . . . . . 7 Melee . | . . . . . . . . . . . . Uniques/NPCs Destroyed 1 | . . . . . . . . . . . 1 Z-Imprinter (-7/Deep Caves) Combat | -11 -10 -9 -8 -8 -7 -7 -7 -7 -7 -7 -7 -------- Run | Jun Mat Mat Mat Gar Fac Was Fac Low Low Zio Dee Damage Taken 6475 | . 270 1179 542 512 1060 . . 343 248 . 2321 Core 1124 | . 65 178 56 100 271 . . 27 32 . 395 Absorbed by Shields 470 | . . . 8 . . . . 32 96 . 334 Redirected to Shielding 332 | . 12 24 . . 96 . . 95 . . 105 Regen/Repaired (Parts) 721 | . . 135 41 . . . 84 67 95 . 299 Core Remaining (%) 75 | 100 74 55 . 71 . . . . . . . Volleys Fired 379 | 12 28 117 51 52 47 . 6 13 22 . 31 Largest 2 | 2 2 2 2 2 2 . 2 2 2 . 2 Hottest 161 | 60 65 95 123 123 128 . 128 128 128 . 161 Shots Fired 524 | 24 47 123 67 62 74 . 10 26 44 . 47 Gun 81 | 24 38 . 2 . . . . . . . 17 Cannon 373 | . 6 101 62 50 66 . 9 26 44 . 9 Launcher 43 | . 3 16 3 12 8 . 1 . . . . Special 27 | . . 6 . . . . . . . . 21 Kinetic 207 | 12 28 50 26 24 26 . 4 13 22 . 2 Thermal 225 | . . 57 38 26 40 . 5 13 22 . 24 Explosive 64 | . 3 16 3 12 8 . 1 . . . 21 Electromagnetic 28 | 12 16 . . . . . . . . . . Robot Hit Streak 13 | 4 4 10 13 11 11 . 3 11 11 . 11 Robot Miss Streak 5 | 2 5 4 2 2 5 . 1 2 2 . 2 Penetration Max . | . . . . . . . . . . . . Secondary Targets 1 | . 1 . . . . . . . . . . Max Gunslinging Chain 1 | . 1 . . . . . . . . . . Shots Hit Robots 304 | 16 22 70 47 26 37 . 6 18 29 . 33 Core Hits 262 | 5 15 55 27 28 56 . 1 6 15 . 54 Critical Kills . | . . . . . . . . . . . . Critical Parts Destroyed . | . . . . . . . . . . . . Critical Strikes 9 | . 2 2 . . . . . . . . 5 Burn 2 | . . . . . . . . . . . 2 Blast 4 | . 2 2 . . . . . . . . . Sever 3 | . . . . . . . . . . . 3 Melee Attacks . | . . . . . . . . . . . . Impact . | . . . . . . . . . . . . Slashing . | . . . . . . . . . . . . Piercing . | . . . . . . . . . . . . Sneak Attacks . | . . . . . . . . . . . . Combat Hostiles . | . . . . . . . . . . . . Follow-up Attacks . | . . . . . . . . . . . . Damage Inflicted 16725 | 173 364 2737 1591 1691 3274 . 152 477 824 . 5442 Guns 716 | 173 189 . 37 . . . . . . . 317 Cannons 6000 | . 70 1439 1249 659 989 . 152 477 824 . 141 Explosions 9159 | . 95 1232 305 1032 2285 . . . . . 4210 Melee . | . . . . . . . . . . . . Ramming 16 | . 10 6 . . . . . . . . . Kinetic 3149 | 69 168 670 573 391 494 . 52 290 416 . 26 Thermal 4144 | . 32 829 713 268 1175 . 100 187 408 . 432 Explosive 8447 | . 63 1232 305 1032 1605 . . . . . 4210 Electromagnetic 195 | 104 91 . . . . . . . . . . Impact . | . . . . . . . . . . . . Slashing 774 | . . . . . . . . . . . 774 Piercing . | . . . . . . . . . . . . Highest Corruption . | . . . . . . . . . . . . Average Corruption . | . . . . . . . . . . . . Corruption Purged . | . . . . . . . . . . . . Corruption Blocked . | . . . . . . . . . . . . Overload Shots . | . . . . . . . . . . . . Overflow Damage 654 | . 2 61 10 72 292 . . 5 1 . 211 Projectiles 101 | . . 41 1 11 33 . . 5 1 . 9 Explosions 553 | . 2 20 9 61 259 . . . . . 202 Melee . | . . . . . . . . . . . . Knockbacks 19 | . 1 3 2 3 6 . 1 1 2 . . Impact . | . . . . . . . . . . . . Kinetic 19 | . 1 3 2 3 6 . 1 1 2 . . Secondary . | . . . . . . . . . . . . Self-Inflicted Damage 199 | . 54 35 . 110 . . . . . . . Shots 6 | . 2 2 . 2 . . . . . . . Rammed . | . . . . . . . . . . . . Targets Rammed 3 | . 1 2 . . . . . . . . . Kicked 3 | . 1 2 . . . . . . . . . Crushed . | . . . . . . . . . . . . Highest Temperature 385 | 40 40 321 235 244 264 . 144 385 199 . 307 Average Temperature 89 | 22 15 96 85 64 80 . 55 148 123 . 90 Received Heat Transfer 1596 | . 45 489 168 180 168 . . 93 181 . 272 Effects 1 | . . 1 . . . . . . . . . Interference 1 | . . 1 . . . . . . . . . Siege Activations . | . . . . . . . . . . . . Robots Corrupted . | . . . . . . . . . . . . Combat Hostiles . | . . . . . . . . . . . . Parts Fried 1 | . 1 . . . . . . . . . . Impact Corruptions . | . . . . . . . . . . . . Robots Melted . | . . . . . . . . . . . . Combat Hostiles . | . . . . . . . . . . . . Parts Melted 3 | . . 1 . . . . . . 1 . 1 Heat Transferred 6243 | . 50 1258 999 370 1350 . 200 350 750 . 916 Parts Sabotaged . | . . . . . . . . . . . . Parts Stolen . | . . . . . . . . . . . . Parts Stripped . | . . . . . . . . . . . . Power Chain Reactions 1 | . 1 . . . . . . . . . . Missiles Intercepted . | . . . . . . . . . . . . Alert | -11 -10 -9 -8 -8 -7 -7 -7 -7 -7 -7 -7 ------- Run | Jun Mat Mat Mat Gar Fac Was Fac Low Low Zio Dee Peak Influence 1011 | 15 270 818 272 1011 875 306 266 . . . . Initial 530 | . 9 60 218 85 530 306 214 . . . . Average 438 | 5 163 590 141 637 598 306 246 . . . . Maximum Alert Level 3 | . 1 3 1 3 3 1 1 . . . . Low Security (%) 26 | 100 69 10 73 10 . . . . . . . Level 1 20 | . 30 5 26 22 . 100 100 . . . . Level 2 31 | . . 49 . 14 82 . . . . . . Level 3 21 | . . 35 . 52 17 . . . . . . Level 4 . | . . . . . . . . . . . . Level 5 . | . . . . . . . . . . . . High Security . | . . . . . . . . . . . . Max Security . | . . . . . . . . . . . . Squads Dispatched 20 | . 2 6 3 . 7 . 2 . . . . Investigation 9 | . 1 4 1 . 1 . 2 . . . . Extermination 2 | . . . . . 2 . . . . . . Reinforcement 5 | . 1 2 . . 2 . . . . . . Assault 2 | . . . . . 2 . . . . . . Garrison 2 | . . . 2 . . . . . . . . Intercept . | . . . . . . . . . . . . Searches Triggered . | . . . . . . . . . . . . Construction Impeded 1 | . . . . . 1 . . . . . . Haulers Reinforced . | . . . . . . . . . . . . Active Scanning Responses . | . . . . . . . . . . . . Cargo Convoy Interrupts . | . . . . . . . . . . . . Stealth | -11 -10 -9 -8 -8 -7 -7 -7 -7 -7 -7 -7 --------- Run | Jun Mat Mat Mat Gar Fac Was Fac Low Low Zio Dee Distress Signals 13 | . . 7 5 . 1 . . . . . . Communications Jammed . | . . . . . . . . . . . . Distress Signals . | . . . . . . . . . . . . Times Spotted 197 | . 17 42 29 24 26 . 1 4 9 . 45 Peak Tracking Total 25 | . 5 6 9 5 13 . 1 3 3 . 25 Tactical Retreats 2 | . . . . 1 . . . . 1 . . Traps | -11 -10 -9 -8 -8 -7 -7 -7 -7 -7 -7 -7 ------- Run | Jun Mat Mat Mat Gar Fac Was Fac Low Low Zio Dee Traps Triggered 1 | . . . . . 1 . . . . . . Indirectly . | . . . . . . . . . . . . Trap Hack Attempts . | . . . . . . . . . . . . Triggered . | . . . . . . . . . . . . Disarmed . | . . . . . . . . . . . . Reprogrammed . | . . . . . . . . . . . . Reused . | . . . . . . . . . . . . Traps Extracted . | . . . . . . . . . . . . Installed . | . . . . . . . . . . . . Triggered 2 | . . . . . . . . 2 . . . Machines | -11 -10 -9 -8 -8 -7 -7 -7 -7 -7 -7 -7 ---------- Run | Jun Mat Mat Mat Gar Fac Was Fac Low Low Zio Dee Machines Disabled 23 | . 1 2 2 6 9 . 1 . . . 2 Max in Single Turn 4 | . 1 1 1 2 4 . 1 . . . 1 Garrison Relay 2 | . . . . 2 . . . . . . . Phase Generator 1 | . . . . 1 . . . . . . . Machines Repaired . | . . . . . . . . . . . . Machines Sabotaged . | . . . . . . . . . . . . Overloaded Fab Kills . | . . . . . . . . . . . . Hacking | -11 -10 -9 -8 -8 -7 -7 -7 -7 -7 -7 -7 --------- Run | Jun Mat Mat Mat Gar Fac Was Fac Low Low Zio Dee Machines Accessed 44 | . 8 11 10 4 6 . 4 . . 1 . Terminals 30 | . 6 8 7 4 4 . 1 . . . . Fabricators 2 | . . . . . . . 2 . . . . Repair Stations 3 | . . 1 1 . 1 . . . . . . Recycling Units 6 | . 2 1 1 . 1 . 1 . . . . Scanalyzers 1 | . . 1 . . . . . . . . . Garrison Access 1 | . . . 1 . . . . . . . . Total Hacks 158 | . 33 39 40 12 16 . 12 . . 6 . Successful 88 | . 20 22 24 2 6 . 8 . . 6 . Failed 69 | . 13 17 15 10 10 . 4 . . . . Catastrophic 10 | . 1 3 1 2 2 . 1 . . . . Database Lockouts 1 | . . . 1 . . . . . . . . Manual 84 | . 27 16 25 . 6 . 5 . . 5 . Terminals 113 | . 27 30 34 12 9 . 1 . . . . Fabricators 5 | . . . . . . . 5 . . . . Repair Stations 10 | . . 4 2 . 4 . . . . . . Recycling Units 19 | . 6 2 2 . 3 . 6 . . . . Scanalyzers 3 | . . 3 . . . . . . . . . Garrison Access 2 | . . . 2 . . . . . . . . Terminal Hacks 48 | . 12 10 15 2 3 . . . . 6 . Part Schematic 7 | . . . . . 1 . . . . 6 . Robot Schematic 2 | . 2 . . . . . . . . . . Robot Analysis 11 | . 4 3 3 . 1 . . . . . . Prototype ID Bank 9 | . 2 2 5 . . . . . . . . Open Door 1 | . . . . 1 . . . . . . . Emergency Access Points 1 | . . . 1 . . . . . . . . Machine Index 2 | . . 1 . . 1 . . . . . . Terminal Index 4 | . 2 1 1 . . . . . . . . Unreport Threat 5 | . . 2 3 . . . . . . . . Locate Traps 2 | . 1 1 . . . . . . . . . Maintenance Status 1 | . . . 1 . . . . . . . . Investigation Status 1 | . . . 1 . . . . . . . . Recall Reinforcements 1 | . 1 . . . . . . . . . . Garrison Registry 1 | . . . . 1 . . . . . . . Fabricator Hacks 3 | . . . . . . . 3 . . . . Load Schematic 2 | . . . . . . . 2 . . . . Build 1 | . . . . . . . 1 . . . . Repair Station Hacks 7 | . . 4 2 . 1 . . . . . . Scan Component 4 | . . 2 1 . 1 . . . . . . Repair 3 | . . 2 1 . . . . . . . . Recycling Unit Hacks 5 | . 2 1 . . 1 . 1 . . . . Retrieve Components 5 | . 2 1 . . 1 . 1 . . . . Scanalyzer 2 | . . 2 . . . . . . . . . Insert Component 1 | . . 1 . . . . . . . . . Analyze 1 | . . 1 . . . . . . . . . Garrison Access Hacks 1 | . . . 1 . . . . . . . . Unlock Access 1 | . . . 1 . . . . . . . . Unauthorized Hacks 22 | . 6 5 6 . 1 . 4 . . . . Terminals 13 | . 3 5 5 . . . . . . . . Assimilate 2 | . . 1 1 . . . . . . . . Botnet 9 | . 3 3 3 . . . . . . . . Operators 2 | . . 1 1 . . . . . . . . Fabricators . | . . . . . . . . . . . . Repair Stations . | . . . . . . . . . . . . Recycling Units 8 | . 3 . . . 1 . 4 . . . . Monitor 1 | . . . . . . . 1 . . . . Reject 4 | . 2 . . . 1 . 1 . . . . Recyclers 2 | . 1 . . . . . 1 . . . . Mask 1 | . . . . . . . 1 . . . . Scanalyzers . | . . . . . . . . . . . . Garrison Access 1 | . . . 1 . . . . . . . . Reprogram 1 | . . . 1 . . . . . . . . Data Cores Recovered . | . . . . . . . . . . . . Used . | . . . . . . . . . . . . Hacking Detections 41 | . 8 11 9 3 6 . 4 . . . . Full Trace Events 11 | . 2 3 1 2 1 . 2 . . . . Feedback Events . | . . . . . . . . . . . . Feedback Blocked . | . . . . . . . . . . . . Robot Schematics Acquired 2 | . 2 . . . . . . . . . . Robots Built 1 | . . . . . . . 1 . . . . Authchips . | . . . . . . . . . . . . Time 27 | . . . . . . . 27 . . . . Total Robot Build Rating 1 | . . . . . . . 1 . . . . Part Schematics Acquired 8 | . . 1 . . 1 . . . . 6 . Parts Built . | . . . . . . . . . . . . Authchips . | . . . . . . . . . . . . Time . | . . . . . . . . . . . . Total Part Build Rating . | . . . . . . . . . . . . Parts Repaired 3 | . . 2 1 . . . . . . . . Time 90 | . . 58 32 . . . . . . . . Parts Recycled . | . . . . . . . . . . . . Recycled Matter . | . . . . . . . . . . . . Retrieved Matter . | . . . . . . . . . . . . Retrieved Components 7 | . 3 2 . . 2 . . . . . . Parts Scanalyzed 1 | . . 1 . . . . . . . . . Part Schematics Acquired 1 | . . 1 . . . . . . . . . Parts Damaged . | . . . . . . . . . . . . Bothacking | -11 -10 -9 -8 -8 -7 -7 -7 -7 -7 -7 -7 ------------ Run | Jun Mat Mat Mat Gar Fac Was Fac Low Low Zio Dee Used RIF Installer . | . . . . . . . . . . . . Robots Hacked . | . . . . . . . . . . . . Non-combat . | . . . . . . . . . . . . Combat . | . . . . . . . . . . . . Robot Hacks Applied . | . . . . . . . . . . . . Relay Couplers Released 9 | . . . . 9 . . . . . . . Machine Destruction 9 | . . . . 9 . . . . . . . Fabnet Peak Effective % . | . . . . . . . . . . . . Robots Rewired . | . . . . . . . . . . . . Allies Hacked . | . . . . . . . . . . . . Hacks Repelled . | . . . . . . . . . . . . Allies | -11 -10 -9 -8 -8 -7 -7 -7 -7 -7 -7 -7 -------- Run | Jun Mat Mat Mat Gar Fac Was Fac Low Low Zio Dee Total Allies 15 | . . 1 2 2 . . 1 . . 9 . Largest Group 10 | . . 1 2 3 1 . 1 1 1 10 10 Highest-Rated Group 383 | . . 10 20 67 20 . 14 14 14 383 383 Highest-Rated Ally 96 | . . 10 10 31 20 . 14 14 14 96 96 Total Orders 42 | . . 6 17 3 . . 3 4 6 . 3 STAY 20 | . . 3 8 2 . . 1 2 3 . 1 FOLLOW 14 | . . 3 9 1 . . 1 . . . . AID 8 | . . . . . . . 1 2 3 . 2 Ally Attacks 165 | . . . . 38 5 . . . . . 122 Total Damage 2866 | . . . . 473 69 . . . . . 2324 Kills 27 | . . . . 8 1 . . . . . 18 Allies Corrupted . | . . . . . . . . . . . . Allies Melted . | . . . . . . . . . . . . Intel | -11 -10 -9 -8 -8 -7 -7 -7 -7 -7 -7 -7 ------- Run | Jun Mat Mat Mat Gar Fac Was Fac Low Low Zio Dee Robot Analysis Total 11 | . 4 3 3 . 1 . . . . . . Derelict Logs Recovered 3 | . . . . . . . . . 1 2 . Drone Launches . | . . . . . . . . . . . . Drone Recoveries . | . . . . . . . . . . . . Exploration | -11 -10 -9 -8 -8 -7 -7 -7 -7 -7 -7 -7 ------------- Run | Jun Mat Mat Mat Gar Fac Was Fac Low Low Zio Dee Turns Passed 8467 | 122 530 1177 868 851 1117 119 275 429 740 1110 1129 Spaces Moved 5244 | 63 338 633 533 545 621 105 199 310 511 759 627 Core 5 | 2 . . . . 3 . . . . . . Treads . | . . . . . . . . . . . . Legs 2427 | 58 338 633 533 545 320 . . . . . . Wheels 2793 | 3 . . . . 279 105 199 310 511 759 627 Hover 19 | . . . . . 19 . . . . . . Flight . | . . . . . . . . . . . . Fastest Speed 50 | 50 120 120 120 123 90 90 105 105 120 135 135 Average Speed 129 | 115 120 120 122 125 145 104 105 116 127 142 144 Slowest Speed 450 | 120 190 120 126 126 450 105 105 120 135 150 150 Overloaded Moves . | . . . . . . . . . . . . Propulsion Burnouts . | . . . . . . . . . . . . Robots Hopped . | . . . . . . . . . . . . Cave-ins Triggered . | . . . . . . . . . . . . Exploration Rate (%) 52 | 6 74 68 47 78 14 70 8 43 73 83 66 Regions Visited 11 Branch Regions 4 Pre-discovered Areas 3 | . . . . . . . . 1 . 2 . Known Exits Taken 2 | . . . 1 . . . 1 . . . . Unknown Exits Taken 6 | 1 1 1 . . . . . 1 1 1 . Scrap Searched 7 | . . . . . . . . 2 3 2 . Spaces Dug 11 | . . 10 1 . . . . . . . . Terrain Destroyed 431 | . 22 107 35 126 38 . 8 3 2 . 90 Melee . | . . . . . . . . . . . . Projectile 39 | . . 19 9 . 3 . 2 3 2 . 1 AOE 392 | . 22 88 26 126 35 . 6 . . . 89 Terrain Rammed . | . . . . . . . . . . . . Walls Destroyed . | . . . . . . . . . . . . Machines Disabled . | . . . . . . . . . . . . Actions | -11 -10 -9 -8 -8 -7 -7 -7 -7 -7 -7 -7 --------- Run | Jun Mat Mat Mat Gar Fac Was Fac Low Low Zio Dee Total 6372 | 88 421 924 675 651 756 114 254 349 554 789 797 Wait 405 | . 20 94 29 47 44 . 37 11 11 12 100 Move 5231 | 62 337 632 532 541 621 104 198 309 510 758 627 Hop . | . . . . . . . . . . . . Pick Up 82 | 6 8 15 18 3 5 1 3 6 6 8 3 Fast Attach 39 | 6 4 3 5 1 11 4 . . . . 5 Attach 30 | 1 2 4 3 4 3 . 2 3 . 1 7 Detach 12 | 1 3 . . . 2 1 1 2 . 1 1 Swap 110 | . 7 32 23 3 15 . 5 5 5 1 14 Drop 81 | . 11 25 14 . 8 4 2 . . 8 9 Fire 379 | 12 28 117 51 52 47 . 6 13 22 . 31 Melee . | . . . . . . . . . . . . Ram . | . . . . . . . . . . . . Kick 3 | . 1 2 . . . . . . . . . Crush . | . . . . . . . . . . . . Escape Stasis . | . . . . . . . . . . . . Rewire . | . . . . . . . . . . . . Trap . | . . . . . . . . . . . . Miscellaneous . | . . . . . . . . . . . . Route ------- -11/Junkyard -10/Materials (discovered 4 exits: *Mat x2 / [*Min x2]) -9/Materials (discovered 3 exits: *Mat x2 / [*Min]) -8/Materials (discovered 2 exits: [*Sto] / Gar) -8/Garrison (discovered 3 exits: *Fac x3) -7/Factory -7/Waste -7/Factory -7/Lower Caves -7/Lower Caves (discovered 2 exits: [*Fac] / *Zio) -7/Zion (discovered 2 exits: [*Dee] / [*Pro]) -7/Deep Caves History --------- Turn | Location | Event 25 | -11/Junkyard | Discovered new exit (range 15) 123 | -11/Junkyard | Entered Materials 233 | -10/Materials | Discovered new exit (range 16) 318 | -10/Materials | Build established: Mutant 332 | -10/Materials | Discovered new exit (range 4) 436 | -10/Materials | Discovered new exit (range 14) 613 | -10/Materials | Discovered new exit (range 8) 653 | -10/Materials | Entered another Materials area 653 | -9/Materials | Evolved 2 slots: Propulsion x1, Utility x1 910 | -9/Materials | Destroyed 10 combat bots 1370 | -9/Materials | Discovered new exit (range 4) 1371 | -9/Materials | Build established: Scavenger-Mutant 1537 | -9/Materials | Discovered new exit (range 13) 1676 | -9/Materials | Repaired Med. Armor Plating 1697 | -9/Materials | Build established: Mutant 1704 | -9/Materials | Repaired Aluminum Leg 1776 | -9/Materials | Discovered new exit (range 13) 1830 | -9/Materials | Entered another Materials area 1830 | -8/Materials | Accompanied by 1 ally 1830 | -8/Materials | Evolved 2 slots: Power x1, Utility x1 2214 | -8/Materials | Build established: Hacker-Mutant 2308 | -8/Materials | Repaired Mni. Grenade Launcher 2575 | -8/Materials | Central database locked down 2598 | -8/Materials | Garrison activated, responded to threat 2643 | -8/Materials | Destroyed 7 combat bots 2681 | -8/Materials | Discovered new exit (range 15) 2692 | -8/Materials | Identified exit to Garrison 2698 | -8/Materials | Entered Garrison 2698 | -8/Garrison | Accompanied by 2 allies 2851 | -8/Garrison | Garrison Relay disabled 2863 | -8/Garrison | Rescued a captive Derelict 2864 | -8/Garrison | Rescued a captive Derelict 2966 | -8/Garrison | Triggered checkpoint 2978 | -8/Garrison | Triggered checkpoint 2988 | -8/Garrison | Triggered checkpoint 3024 | -8/Garrison | Triggered checkpoint 3064 | -8/Garrison | Phase Generator disabled 3087 | -8/Garrison | Discovered new exit (range 10) 3096 | -8/Garrison | Triggered checkpoint 3107 | -8/Garrison | Discovered new exit (range 47) 3107 | -8/Garrison | Discovered new exit (range 86) 3107 | -8/Garrison | Discovered new exit (range 7) 3236 | -8/Garrison | Attempted to access garrison exit controls, blocked by remote lockdown 3361 | -8/Garrison | Attempted to access garrison exit controls, blocked by remote lockdown 3463 | -8/Garrison | Garrison Relay disabled 3549 | -8/Garrison | Entered Factory 3549 | -7/Factory | Accompanied by 1 ally 3549 | -7/Factory | Evolved 2 slots: Utility x2 4349 | -7/Factory | First assault squad dispatched 4487 | -7/Factory | Destroyed 11 combat bots 4494 | -7/Factory | Lost 4 parts (1p3n) 4666 | -7/Factory | Sucked down chute 4666 | -7/Factory | Entered Waste 4666 | -7/Waste | The area was eerily silent 4774 | -7/Waste | Discovered new exit (range 10) 4785 | -7/Waste | Entered Factory 4931 | -7/Factory | Fabricated M-13 Machinist? 5053 | -7/Factory | Discovered new exit (range 6) 5060 | -7/Factory | Identified exit to Lower Caves 5060 | -7/Factory | Entered Lower Caves 5060 | -7/Lower Caves | Accompanied by 1 ally 5071 | -7/Lower Caves | Met a Warlord Commander 5072 | -7/Lower Caves | Learned location of Warlord (-5) 5073 | -7/Lower Caves | Found Encrypted Comm Array 5119 | -7/Lower Caves | Encountered a Warlord checkpoint 5328 | -7/Lower Caves | Build established: Mutant 5431 | -7/Lower Caves | Discovered new exit (range 12) 5436 | -7/Lower Caves | Attracted the attention of an 0b10 checkpoint 5489 | -7/Lower Caves | Entered another Lower Caves area 5489 | -7/Lower Caves | Accompanied by 1 ally 5548 | -7/Lower Caves | Discovered new exit (range 16) 5673 | -7/Lower Caves | Encountered a Warlord checkpoint 5692 | -7/Lower Caves | Learned 8 Factory zone layouts 6068 | -7/Lower Caves | Discovered new exit (range 13) 6229 | -7/Lower Caves | Entered Zion 6229 | -7/Zion | Accompanied by 1 ally 6278 | -7/Zion | Discovered new exit (range 15) 6301 | -7/Zion | Acquired unknown access codes intercepted by a Zionite 6351 | -7/Zion | Received a hallucinogenic algorithm 6427 | -7/Zion | Found CR-A16's Pointy Stick 6451 | -7/Zion | Gained Derelict followers 6734 | -7/Zion | Found Prototype Special Weapon 6736 | -7/Zion | Found Prototype Special Weapon 6737 | -7/Zion | Identified RU-N14's Throwing Claymores (x2) 6741 | -7/Zion | Found RU-N14's Throwing Claymores 6744 | -7/Zion | Found RU-N14's Throwing Claymores 6857 | -7/Zion | Given A8's code to call for help 6929 | -7/Zion | Learned 8 Factory zone layouts 7292 | -7/Zion | Opened final containment barrier to the Deep Caves 7296 | -7/Zion | Enhanced Grunt warped into view, answering call for help 7297 | -7/Zion | Enhanced Grunt warped into view, answering call for help 7316 | -7/Zion | Discovered new exit (range 3) 7316 | -7/Zion | Saw the warning signs outside the Deep Caves entrance 7339 | -7/Zion | Entered Deep Caves 7339 | -7/Deep Caves | Accompanied by 10 allies 7645 | -7/Deep Caves | Z-Facility disabled 7686 | -7/Deep Caves | Attacked by Z-Imprinter 7688 | -7/Deep Caves | Core integrity fell below 50% 7691 | -7/Deep Caves | Destroyed Z-Imprinter 8011 | -7/Deep Caves | Build established: Derelict-Mutant 8116 | -7/Deep Caves | Found Prototype Protection 8116 | -7/Deep Caves | Identified Zio. Heavy Carapace 8218 | -7/Deep Caves | Found Prototype Protection 8218 | -7/Deep Caves | Identified Zio. Weapon Casing 8409 | -7/Deep Caves | Build established: Mutant 8422 | -7/Deep Caves | Spotted as-24943 8423 | -7/Deep Caves | Exposed GOLEM chamber 8424 | -7/Deep Caves | Triggered Deep Caves wall 8463 | -7/Deep Caves | Core integrity fell below 20% 8468 | -7/Deep Caves | Destroyed by as-90407 with Assembled Blade Last Messages --------------- 08449_ Imp. Treads destroyed. 08451_ Machinist 4a destroyed. 08452_ Destroyed Prototype Protection. 08452_ Destroyed Prototype Device. 08452_ Zio. Light Carapace destroyed. 08453_ Q5-UEH(g) destroyed. 08455_ Destroyed Prototype Energy Cannon. 08455_ Destroyed Prototype Protection. 08457_ Plasma Cannon destroyed. 08457_ Antimatter Reactor destroyed. 08459_ Hvy. Beamcaster destroyed. 08459_ RU-N14's Throwing Claymores expended. 08461_ Backup Power I destroyed. 08461_ Arm. Wheel destroyed. 08462_ Slug penetrates as-24943. 08462_ Destroyed Prototype Energy Cannon. 08463_ as-24943 Prototype Device integration complete. 08464_ as-24943 GOLEM Unit beginning Prototype Reactor integration. 08465_ Gauss Cannon destroyed. 08467_ as-47067 destroyed. Map ----- +----------------------------------------------------+ | ?????????????????????????????????????????????? | | ?????????????????????????????????????????????? | | ?????????????????????????????????????????????? | | ?????????????????????????????????????????????? | | ?????????????????????????????????????????????? | | ?????????????????????????????????????????????? | | ?????????????????????????????????????????????? | | ????????????????????????? ?????????????????? | | ?????????????????????? ??????##?#???????? | | ????????????????????* ?????? ?????? | | ??????????????????! = #????? ?????? | | ??????????????? * = #????? ????### | | ????????????? a a a #????? ????## | | ??????????? a #????? ?????# | | ?????????? ##??## ??????# | | ?????????? aG #?## #???????# | | ????????? % ### #???????# | | ????????? / ## #????????# | | ????????" = ## #???????## | | ????????? / #??????## | | ????????""" ##???### | | ????????" % ##### | | ????????"" ! %= ## ### | | ????????" !% =! ### ##?? | | ?????????" a =] ##?## #??? | | ????????" @% # #???## ## ##??? | | ????????" ##;# ;# ;# ##????#########???? | | ????????""" ???????# ## ####?????????????????? | | ???????????????????##?? #????????????????????? | | ???????????????????????#?????????????????????? | | | | | | | | | | | | | | | | | | | | | | | | | | | | | | | | | | | | | | | | | +----------------------------------------------------+ Best States ------------- Heat Dissipation 56 Coolant Potential 65 Energy Generation 31 Energy Capacity 975 Matter Stores 300 Matter Capacity 300 Sight Range 16 Robot Scan Range 15 Terrain Scan Range 16 Terrain Scan Density 210 Armor Coverage 1800 Resistance: KI 20 Resistance: EM 15 Core Shielding 20 Power Shielding 33 Weapon Shielding 100 Evasion (%) 55 Targeting Accuracy 28 Recoil Reduction 1 Offensive Hacking 20 Defensive Hacking 20 Item Schematics ----------------- Insulated Plating | -9/Materials | Scanalyzed Recoil Nullifier | -7/Factory | Hacked Beamcaster | -7/Zion | Free Riot Gun | -7/Zion | Free Barrage Gun | -7/Zion | Free Battle Cannon | -7/Zion | Free Slug Cannon | -7/Zion | Free Ripper | -7/Zion | Free Robot Schematics ------------------ M-13 Machinist | -10/Materials | Hacked A-02 Transporter | -10/Materials | Hacked Fabricated ------------ M-13 Machinist | x1 | -7/Factory Alien Tech Used ----------------- None Achievements -------------- None Challenges ------------ None Game ------ Seed HardcellInsulatedBuckler Manual? 0 Play Time 01:54:16 Cumulative 1095.1 hours Start 2023.12.25 @ 23:21:24 End 2023.12.26 @ 01:37:10 Sessions 1 Manual Loads 0 Difficulty Rogue Special Mode None Game No. 458 Rogue 458 Adventurer 0 Explorer 0 Win Type - Total 14 Types 12/0/1/1/0/0/0/0/0 Lore% 72 Gallery% 84 Achievement% 71 Wizard Run 0 Options --------- ASCII 0 Keyboard 1 Movement Numpad Keybinds 0 Fullscreen 1 Font 18/SmallcapsGlow Map View 112x50 Tactical HUD 1 Map Filters NONE Filters NONE Steam 1 RUN: afb2761e-8b6b-4180-b85f-43d376dfc510